lending/lending_fUSD_20260104
["ID","MTS","AMOUNT","RATE_DAILY","PERIOD"]
[400425172,1767539245982,-1314.81830855,0.00015687,2]
[400425173,1767539246009,-1314.81830855,0.00015687,2]
[400425174,1767539246037,-1314.81830855,0.00015687,2]
[400425175,1767539246063,-1314.81830855,0.00015687,2]
[400425176,1767539246089,-1314.81830855,0.00015687,2]
[400425177,1767539246117,-1314.81830855,0.00015687,2]
[400425178,1767539246143,-1314.81830855,0.00015687,2]
[400425179,1767539246169,-1314.81830855,0.00015687,2]
[400425180,1767539246195,-1314.81830855,0.00015687,2]
[400425181,1767539246222,-1314.81830855,0.00015687,2]
[400425182,1767539246248,-1314.81830855,0.00015687,2]
[400425183,1767539246278,-1314.81830855,0.00015687,2]
[400425184,1767539246305,-1314.81830855,0.00015687,2]
[400425185,1767539246332,-1314.81830855,0.00015687,2]
[400425186,1767539246361,-1314.81830855,0.00015687,2]
[400425187,1767539246389,-1314.81830855,0.00015687,2]
[400425188,1767539246419,-1314.81830855,0.00015687,2]
[400425189,1767539246445,-1314.81830855,0.00015687,2]
[400425190,1767539246472,-1301.67012547,0.00015687,2]
[400425191,1767539246500,-1301.67012547,0.00015687,2]
[400425192,1767539246528,-1028.26155373,0.00015687,2]
[400425199,1767539285752,204.93951531,0.0001559,2]
[400425220,1767539351076,-1200.0,0.00015686,2]
[400425221,1767539351102,-300.0,0.00015686,2]
[400425222,1767539351122,-98.16011597,0.00015686,2]
[400425227,1767539385485,9795.07048469,0.0001558,2]
[400425228,1767539385564,10000.01,0.0001558,2]
[400425229,1767539385642,10000.01,0.0001558,2]
[400425230,1767539385713,10000.01,0.0001558,2]
[400425231,1767539385781,10000.01,0.0001558,2]
[400425232,1767539385854,10000.01,0.0001558,2]
[400425233,1767539385924,10000.01,0.0001558,2]
[400425234,1767539385991,10000.01,0.0001558,2]
[400425235,1767539388518,1421.99,0.000202,30]
[400425245,1767539417459,-300.0,0.00015579,2]
[400425246,1767539417557,-300.0,0.00015579,2]
[400425247,1767539417648,-1200.0,0.00015579,2]
[400425248,1767539417726,-280.0,0.00015579,2]
[400425249,1767539420041,-151.0,0.00015577,2]
[400425251,1767539431944,-8574.07364616,0.0001558,2]
[400425252,1767539431957,-5351.0,0.0001558,2]
[400425253,1767539432014,-3564.76,0.0001558,2]
[400425254,1767539432030,-3644.00137046,0.0001558,2]
[400425270,1767539433064,-215.67494684,0.0001558,2]
[400425271,1767539433077,-1182.79273477,0.0001558,2]
[400425272,1767539433088,-4105.49267856,0.0001558,2]
[400425273,1767539433105,-522.01652846,0.0001558,2]
[400425274,1767539433117,-3144.12495393,0.0001558,2]
[400425276,1767539438003,-1457.29023885,0.0001558,2]
[400425278,1767539438016,-1276.52476537,0.0001558,2]
[400425279,1767539438028,-373.89027291,0.0001558,2]
[400425280,1767539438070,-3545.62120439,0.0001558,2]
[400425281,1767539438082,-1603.22733612,0.0001558,2]
[400425282,1767539438094,-15408.18328867,0.0001558,2]
[400425283,1767539438106,-2667.17669891,0.0001558,2]
[400425284,1767539438117,-29031.7208,0.0001558,2]
[400425285,1767539438131,-91283.77420731,0.0001558,2]
[400425286,1767539438142,-568.6437948,0.0001558,2]
[400425384,1767539439562,780.68,0.00013699,2]
[400425449,1767539440186,-3398.94524865,0.0001558,2]
[400425451,1767539440198,-372.86839505,0.0001558,2]
[400425454,1767539440210,-591.46997237,0.0001558,2]
[400425459,1767539440252,-1475.01170085,0.0001558,2]
[400425461,1767539440263,-1405.08006027,0.0001558,2]
[400425463,1767539440275,-18165.72006814,0.0001558,2]
[400425466,1767539440306,-2844.23565072,0.0001558,2]
[400425469,1767539440322,-430.4257349,0.0001558,2]
[400425480,1767539440438,-4062.41377359,0.0001558,2]
[400425483,1767539440450,-814.4805325,0.0001558,2]
[400425485,1767539440462,-709124.21891176,0.0001558,2]
[400425487,1767539440472,-186.16778178,0.00015586,2]
[400425489,1767539440482,-201.83988403,0.00015686,2]
[400425491,1767539440492,-195.0,0.00015686,2]
[400425493,1767539440503,-195.0,0.00015687,2]
[400425495,1767539440514,-273.40857174,0.00015687,2]
[400425497,1767539440524,-1301.67012547,0.00015687,2]
[400425499,1767539440534,-1301.67012547,0.00015687,2]
[400425501,1767539440544,-1301.67012547,0.00015687,2]
[400425503,1767539440554,-1301.67012547,0.00015687,2]
[400425505,1767539440564,-1301.67012547,0.00015687,2]
[400425507,1767539440575,-1301.67012547,0.00015687,2]
[400425509,1767539440584,-1301.67012547,0.00015687,2]
[400425511,1767539440594,-1301.67012547,0.00015687,2]
[400425513,1767539440604,-1301.67012547,0.00015687,2]
[400425515,1767539440615,-1301.67012547,0.00015687,2]
[400425517,1767539440626,-1301.67012547,0.00015687,2]
[400425519,1767539440635,-1301.67012547,0.00015687,2]
[400425521,1767539440648,-1301.67012547,0.00015687,2]
[400425523,1767539440669,-1301.67012547,0.00015687,2]
[400425525,1767539440689,-1301.67012547,0.00015687,2]
[400425528,1767539440700,-1301.67012547,0.00015687,2]
[400425531,1767539440711,-1301.67012547,0.00015687,2]
[400425533,1767539440723,-1301.67012547,0.00015687,2]
[400425535,1767539440736,-1301.67012547,0.00015687,2]
[400425537,1767539440745,-937.20249033,0.00015687,2]
[400425539,1767539440759,-937.20249033,0.00015687,2]
[400425541,1767539440771,-937.20249033,0.00015687,2]
[400425543,1767539440781,-937.20249033,0.00015687,2]
[400425545,1767539440793,-937.20249033,0.00015687,2]
[400425548,1767539440804,-937.20249033,0.00015687,2]
[400425550,1767539440814,-937.20249033,0.00015687,2]
[400425552,1767539440824,-937.20249033,0.00015687,2]
[400425554,1767539440836,-937.20249033,0.00015687,2]
[400425556,1767539440847,-937.20249033,0.00015687,2]
[400425558,1767539440858,-350111.5307679,0.00015687,2]
[400425560,1767539440868,-1000.0,0.00015688,2]
[400425562,1767539440879,-500.0,0.00015689,2]
[400425564,1767539440889,-504.75468002,0.00015689,2]
[400425566,1767539440901,-500.0,0.00015689,2]
[400425568,1767539440913,-500.0,0.00015689,2]
[400425570,1767539440924,-500.0,0.00015689,2]
[400425572,1767539440934,-500.0,0.00015689,2]
[400425574,1767539440943,-500.0,0.00015689,2]
[400425576,1767539440953,-500.0,0.00015689,2]
[400425578,1767539440965,-500.0,0.00015689,2]
[400425580,1767539440977,-500.0,0.00015689,2]
[400425582,1767539440987,-500.0,0.00015689,2]
[400425584,1767539440997,-500.0,0.00015689,2]
[400425586,1767539441008,-500.0,0.00015689,2]
[400425588,1767539441019,-500.0,0.00015689,2]
[400425590,1767539441031,-500.0,0.00015689,2]
[400425592,1767539441040,-500.0,0.00015689,2]
[400425594,1767539441050,-500.0,0.00015689,2]
[400425596,1767539441060,-500.0,0.00015689,2]
[400425598,1767539441070,-500.0,0.00015689,2]
[400425600,1767539441079,-362.19053749,0.00015689,2]
[400425602,1767539441089,-500.0,0.00015689,2]
[400425604,1767539441099,-500.0,0.00015689,2]
[400425606,1767539441109,-500.0,0.00015689,2]
[400425608,1767539441119,-500.0,0.00015689,2]
[400425610,1767539441130,-500.0,0.00015689,2]
[400425612,1767539441140,-500.0,0.00015689,2]
[400425614,1767539441151,-246.90004185,0.00015689,2]
[400425616,1767539441162,-408.5741355,0.00015689,2]
[400425618,1767539441172,-500.0,0.00015689,2]
[400425620,1767539441181,-165.786,0.0001569,2]
[400425622,1767539441191,-1680.413,0.0001569,2]
[400425624,1767539441201,-200.0,0.0001569,2]
[400425626,1767539441211,-281.4210256,0.0001569,2]
[400425628,1767539441221,-500.0,0.0001569,2]
[400425630,1767539441231,-1000.0,0.000157,2]
[400425632,1767539441240,-19593.2831,0.000157,2]
[400425635,1767539441251,-25137.18,0.00015727,2]
[400425636,1767539441260,-500.0,0.00015799,2]
[400425638,1767539441270,-500.0,0.00015799,2]
[400425640,1767539441281,-166.66,0.00015837,2]
[400425643,1767539441291,-3380.01087216,0.00015846,2]
[400425645,1767539441301,-6174.76146699,0.00015847,2]
[400425647,1767539441311,-200.0,0.00015847,2]
[400425649,1767539441320,-1053.19,0.00015955,2]
[400425651,1767539441332,-500.0,0.00015964,2]
[400425653,1767539441345,-42425.43378278,0.0001605,2]
[400425655,1767539441354,-286.31309008,0.00016056,2]
[400425657,1767539441364,-3380.01087216,0.00016103,2]
[400425659,1767539441375,-6174.76146699,0.00016103,2]
[400425661,1767539441385,-166.66,0.00016163,2]
[400425663,1767539441395,-2634.12,0.00016216,2]
[400425665,1767539441406,-1053.19,0.00016229,2]
[400425667,1767539441418,-509.49377493,0.00016238,2]
[400425669,1767539441440,-151.0,0.00016357,2]
[400425671,1767539441452,-3380.01087216,0.00016359,2]
[400425673,1767539441462,-6174.76146699,0.0001636,2]
[400425675,1767539441472,-151.0,0.00016402,2]
[400425677,1767539441482,-151.0,0.00016407,2]
[400425679,1767539441491,-151.0,0.00016422,2]
[400425681,1767539441501,-151.0,0.00016422,2]
[400425683,1767539441511,-151.0,0.00016428,2]
[400425685,1767539441521,-151.0,0.00016428,2]
[400425687,1767539441531,-500.0,0.00016437,2]
[400425689,1767539441541,-500.0,0.00016438,2]
[400425691,1767539441551,-500.0,0.00016438,2]
[400425693,1767539441561,-500.0,0.00016438,2]
[400425695,1767539441570,-500.0,0.00016438,2]
[400425697,1767539441580,-500.0,0.00016438,2]
[400425700,1767539441589,-500.0,0.00016438,2]
[400425702,1767539441599,-500.0,0.00016438,2]
[400425704,1767539441608,-500.0,0.00016438,2]
[400425706,1767539441618,-500.0,0.00016438,2]
[400425707,1767539441627,-500.0,0.00016438,2]
[400425710,1767539441638,-500.0,0.00016438,2]
[400425711,1767539441647,-500.0,0.00016438,2]
[400425714,1767539441657,-500.0,0.00016438,2]
[400425716,1767539441667,-500.0,0.00016438,2]
[400425718,1767539441676,-500.0,0.00016438,2]
[400425719,1767539441686,-500.0,0.00016438,2]
[400425721,1767539441695,-500.0,0.00016438,2]
[400425724,1767539441705,-500.0,0.00016438,2]
[400425726,1767539441715,-500.0,0.00016438,2]
[400425728,1767539441724,-500.0,0.00016438,2]
[400425729,1767539441734,-500.0,0.00016438,2]
[400425732,1767539441744,-500.0,0.00016438,2]
[400425734,1767539441754,-500.0,0.00016438,2]
[400425761,1767539442006,-500.0,0.00016438,2]
[400425763,1767539442018,-500.0,0.00016438,2]
[400425765,1767539442028,-500.0,0.00016438,2]
[400425767,1767539442038,-500.0,0.00016438,2]
[400425769,1767539442048,-500.0,0.00016438,2]
[400425771,1767539442058,-500.0,0.00016438,2]
[400425773,1767539442068,-500.0,0.00016438,2]
[400425775,1767539442078,-500.0,0.00016438,2]
[400425777,1767539442088,-500.0,0.00016438,2]
[400425779,1767539442098,-500.0,0.00016438,2]
[400425781,1767539442108,-500.0,0.00016438,2]
[400425783,1767539442119,-184.10651672,0.00016438,2]
[400425785,1767539442129,-500.0,0.00016438,2]
[400425787,1767539442139,-500.0,0.00016438,2]
[400425789,1767539442150,-500.0,0.00016438,2]
[400425792,1767539442160,-500.0,0.00016438,2]
[400425793,1767539442170,-500.0,0.00016438,2]
[400425796,1767539442180,-500.0,0.00016438,2]
[400425797,1767539442189,-500.0,0.00016438,2]
[400425799,1767539442198,-500.0,0.00016438,2]
[400425801,1767539442209,-500.0,0.00016438,2]
[400425803,1767539442219,-500.0,0.00016438,2]
[400425806,1767539442229,-249.99999999,0.00016438,2]
[400425807,1767539442239,-166.66,0.0001649,2]
[400425809,1767539442248,-1053.19,0.00016503,2]
[400425811,1767539442259,-673.0,0.00016555,2]
[400425813,1767539442269,-3380.01087216,0.00016616,2]
[400425815,1767539442279,-6174.76146699,0.00016617,2]
[400425817,1767539442288,-3516.0,0.0001666,2]
[400425819,1767539442298,-3516.0,0.00016703,2]
[400425821,1767539442308,-186.16778178,0.00016743,2]
[400425823,1767539442318,-3516.0,0.00016756,2]
[400425825,1767539442327,-1053.19,0.00016777,2]
[400425827,1767539442343,-159.67108242,0.000168,2]
[400425829,1767539442353,-510.0,0.00016815,2]
[400425831,1767539442362,-166.66,0.00016816,2]
[400425833,1767539442371,-3380.01087216,0.00016873,2]
[400425835,1767539442383,-6174.76146699,0.00016873,2]
[400425837,1767539442393,-250.0,0.00017,2]
[400425839,1767539442402,-1452.35412525,0.00017028,2]
[400425841,1767539442413,-3240.0,0.00017038,2]
[400425843,1767539442424,-420.0,0.0001704,2]
[400425845,1767539442433,-420.0,0.0001704,2]
[400425847,1767539442443,-1053.19,0.00017051,2]
[400425849,1767539442453,-1600.0,0.00017074,2]
[400425851,1767539442463,-330.25795361,0.00017102,2]
[400425865,1767539442759,177.31565734,0.00015486,2]
[400425878,1767539442843,174.79640443,0.00015486,2]
[400426076,1767539444772,-151.0,0.00016422,2]
[400426079,1767539444782,-252.92,0.00016438,2]
[400426081,1767539444794,-936.21101956,0.00016438,2]
[400426083,1767539444804,-566.15199723,0.00016616,2]
[400426085,1767539444814,-4066.64,0.0001667,2]
[400426087,1767539444824,-1758.74204639,0.00017102,2]
[400426089,1767539444834,-250.0,0.00017107,2]
[400426091,1767539444844,-3516.0,0.0001711,2]
[400426093,1767539444854,-1680.0,0.00017126,2]
[400426095,1767539444864,-250.0,0.00017127,2]
[400426097,1767539444875,-3380.01087216,0.0001713,2]
[400426099,1767539444884,-6174.76146699,0.0001713,2]
[400426101,1767539444894,-166.66,0.00017143,2]
[400426103,1767539444904,-500.0,0.00017147,2]
[400426105,1767539444914,-500.0,0.00017147,2]
[400426107,1767539444923,-500.0,0.00017147,2]
[400426109,1767539444933,-500.0,0.00017147,2]
[400426110,1767539444943,-500.0,0.00017147,2]
[400426113,1767539444953,-600.0,0.00017151,2]
[400426115,1767539444963,-600.0,0.00017151,2]
[400426117,1767539444975,-600.0,0.00017151,2]
[400426119,1767539444985,-600.0,0.00017151,2]
[400426121,1767539444994,-600.0,0.00017151,2]
[400426123,1767539445004,-300.0,0.00017151,2]
[400426124,1767539445014,-250.0,0.00017153,2]
[400426126,1767539445023,-300.0,0.00017153,2]
[400426128,1767539445033,-195.0,0.00017153,2]
[400426130,1767539445042,-1680.0,0.00017155,2]
[400426132,1767539445052,-200.0,0.00017174,2]
[400426135,1767539445062,-3516.0,0.00017237,2]
[400426137,1767539445072,-195.0,0.00017255,2]
[400426138,1767539445081,-195.0,0.00017255,2]
[400426140,1767539445091,-250.0,0.00017255,2]
[400426143,1767539445101,-3516.0,0.00017256,2]
[400426144,1767539445111,-1053.19,0.00017325,2]
[400426146,1767539445121,-623.0,0.0001737,2]
[400426149,1767539445131,-2946.63259767,0.00017386,2]
[400426151,1767539445143,-259.19169647,0.00017386,2]
[400426153,1767539445155,-174.18657802,0.00017386,2]
[400426155,1767539445165,-2318.91342198,0.00017387,2]
[400426157,1767539445176,-649.83334176,0.00017387,2]
[400426160,1767539445192,-3206.01470325,0.00017387,2]
[400426162,1767539445201,-2089.0,0.00017541,2]
[400426164,1767539445210,-1053.19,0.00017599,2]
[400426166,1767539445220,-1000.0,0.000176,2]
[400426168,1767539445230,-1250.73593073,0.0001764,2]
[400426170,1767539445239,-3380.01087216,0.00017643,2]
[400426172,1767539445249,-6174.76146699,0.00017643,2]
[400426174,1767539445258,-500.0,0.00017644,2]
[400426176,1767539445268,-500.0,0.00017644,2]
[400426177,1767539445278,-500.0,0.00017644,2]
[400426179,1767539445288,-500.0,0.00017644,2]
[400426181,1767539445299,-500.0,0.00017644,2]
[400426183,1767539445309,-1000.0,0.000177,2]
[400426186,1767539445324,-1000.0,0.00017714,2]
[400426188,1767539445334,-1000.0,0.00017726,2]
[400426190,1767539445346,-150.0,0.00017732,2]
[400426191,1767539445355,-150.0,0.00017734,2]
[400426193,1767539445365,-1090.62620329,0.00017738,2]
[400426195,1767539445374,-150.0,0.00017739,2]
[400426197,1767539445384,-1000.0,0.00017744,2]
[400426199,1767539445393,-633.13,0.00017759,2]
[400426201,1767539445404,-1274.058,0.00017759,2]
[400426203,1767539445414,-550.012,0.00017759,2]
[400426205,1767539445424,-1200.0,0.00017759,2]
[400426207,1767539445433,-913.0,0.00017759,2]
[400426210,1767539445448,-1000.0,0.00017763,2]
[400426212,1767539445457,-1000.0,0.00017768,2]
[400426214,1767539445467,-4815.0,0.00017769,2]
[400426216,1767539445477,-565.0,0.00017769,2]
[400426218,1767539445487,-2118.959,0.00017769,2]
[400426220,1767539445497,-6547.0,0.00017769,2]
[400426222,1767539445506,-1000.0,0.0001777,2]
[400426224,1767539445516,-150.0,0.00017775,2]
[400426226,1767539445525,-1000.0,0.00017779,2]
[400426228,1767539445535,-150.0,0.00017786,2]
[400426230,1767539445544,-1000.0,0.00017793,2]
[400426232,1767539445554,-2089.0,0.00017795,2]
[400426234,1767539445564,-150.0,0.00017811,2]
[400426236,1767539445574,-1000.0,0.00017814,2]
[400426238,1767539445583,-1000.0,0.00017817,2]
[400426240,1767539445593,-3659.6414,0.0001782,2]
[400426242,1767539445603,-3659.64141,0.0001782,2]
[400426244,1767539445614,-1000.0,0.00017827,2]
[400426246,1767539445623,-3659.64141,0.0001783,2]
[400426248,1767539445632,-1000.0,0.00017844,2]
[400426250,1767539445643,-150.0,0.00017846,2]
[400426252,1767539445652,-1000.0,0.0001785,2]
[400426254,1767539445662,-200.0,0.00017856,2]
[400426256,1767539445671,-3659.64141,0.0001786,2]
[400426258,1767539445681,-1000.0,0.00017861,2]
[400426260,1767539445691,-1000.0,0.0001787,2]
[400426262,1767539445700,-1053.19,0.00017873,2]
[400426264,1767539445710,-150.0,0.00017874,2]
[400426266,1767539445719,-1000.0,0.00017879,2]
[400426267,1767539445728,-1000.0,0.0001788,2]
[400426270,1767539445739,-3659.6414,0.0001788,2]
[400426271,1767539445748,-1000.0,0.00017885,2]
[400426273,1767539445758,-1000.0,0.00017895,2]
[400426275,1767539445767,-152.75971115,0.00017899,2]
[400426277,1767539445777,-10000.0,0.000179,2]
[400426279,1767539445788,-1912.01680155,0.000179,2]
[400426281,1767539445797,-1000.0,0.000179,2]
[400426283,1767539445806,-3380.01087216,0.000179,2]
[400426285,1767539445816,-386.3255641,0.000179,2]
[400426287,1767539445825,-6174.76146699,0.000179,2]
[400426289,1767539445834,-186.16778178,0.000179,2]
[400426291,1767539445844,-350111.5307679,0.00017901,2]
[400426293,1767539445854,-2089.0,0.00017901,2]
[400426295,1767539445864,-1000.0,0.00017904,2]
[400426297,1767539445874,-1000.0,0.0001791,2]
[400426299,1767539445883,-3659.64141,0.0001791,2]
[400426301,1767539445893,-1000.0,0.00017916,2]
[400426303,1767539445902,-1000.0,0.00017929,2]
[400426305,1767539445911,-1000.0,0.0001794,2]
[400426307,1767539445921,-1000.0,0.0001794,2]
[400426309,1767539445931,-150.0,0.00017943,2]
[400426311,1767539445940,-1000.0,0.00017949,2]
[400426313,1767539445950,-1000.0,0.0001795,2]
[400426315,1767539445959,-150.0,0.00017952,2]
[400426317,1767539445968,-1000.0,0.00017958,2]
[400426319,1767539445978,-931.27949922,0.00017958,2]
[400426321,1767539445987,-1000.0,0.00017964,2]
[400426322,1767539445998,-150.0,0.00017964,2]
[400426324,1767539446007,-1000.0,0.00017968,2]
[400426326,1767539446016,-3302.0,0.0001798,2]
[400426328,1767539446026,-505.25139583,0.00017982,2]
[400426330,1767539446035,-219.15948164,0.00017982,2]
[400426332,1767539446045,-1452.35412525,0.0001799,2]
[400426334,1767539446055,-1452.35412525,0.0001799,2]
[400426336,1767539446064,-151.0,0.00017997,2]
[400426338,1767539446073,-500.0,0.00017998,2]
[400426340,1767539446083,-500.0,0.00017998,2]
[400426342,1767539446092,-300.0,0.00017999,2]
[400426344,1767539446102,-500.0,0.00017999,2]
[400426346,1767539446112,-500.0,0.00017999,2]
[400426348,1767539446121,-511.9256593,0.00017999,2]
[400426350,1767539446132,-500.0,0.00017999,2]
[400426352,1767539446141,-500.0,0.00017999,2]
[400426353,1767539446151,-500.0,0.00017999,2]
[400426354,1767539446160,-624.79134735,0.00017999,2]
[400426355,1767539446169,-500.0,0.00017999,2]
[400426356,1767539446178,-500.0,0.00017999,2]
[400426357,1767539446187,-500.0,0.00017999,2]
[400426358,1767539446197,-500.0,0.00017999,2]
[400426359,1767539446206,-500.0,0.00017999,2]
[400426360,1767539446215,-500.0,0.00017999,2]
[400426361,1767539446224,-500.0,0.00017999,2]
[400426362,1767539446233,-500.0,0.00017999,2]
[400426363,1767539446243,-500.0,0.00017999,2]
[400426364,1767539446251,-500.0,0.00017999,2]
[400426365,1767539446260,-515.95481889,0.00017999,2]
[400426366,1767539446270,-595.20438035,0.00017999,2]
[400426367,1767539446279,-500.0,0.00017999,2]
[400426368,1767539446289,-500.0,0.00017999,2]
[400426370,1767539446298,-500.0,0.00017999,2]
[400426371,1767539446307,-500.0,0.00017999,2]
[400426373,1767539446316,-481.52188021,0.00017999,2]
[400426375,1767539446325,-500.0,0.00017999,2]
[400426377,1767539446337,-300.0,0.00017999,2]
[400426379,1767539446346,-300.0,0.00017999,2]
[400426381,1767539446356,-695.86626981,0.00017999,2]
[400426382,1767539446365,-500.0,0.00017999,2]
[400426384,1767539446375,-500.0,0.00017999,2]
[400426386,1767539446385,-500.0,0.00017999,2]
[400426388,1767539446395,-600.92295159,0.00017999,2]
[400426390,1767539446404,-300.0,0.00017999,2]
[400426392,1767539446416,-666.0,0.00017999,2]
[400426394,1767539446426,-500.0,0.00017999,2]
[400426396,1767539446436,-500.0,0.00017999,2]
[400426398,1767539446445,-500.0,0.00017999,2]
[400426400,1767539446455,-500.0,0.00017999,2]
[400426402,1767539446464,-500.0,0.00017999,2]
[400426404,1767539446473,-500.0,0.00017999,2]
[400426406,1767539446483,-500.0,0.00017999,2]
[400426408,1767539446492,-239.95642198,0.00017999,2]
[400426410,1767539446502,-300.0,0.00017999,2]
[400426412,1767539446511,-294230.04027139,0.00018,2]
[400426425,1767539446628,-6019.73832867,0.00018,2]
[400426427,1767539446640,-275.20115443,0.00018,2]
[400426429,1767539446652,-713.13,0.00018,2]
[400426436,1767539446708,-262260.40472266,0.00018,2]
[400426439,1767539446723,-5758.36176899,0.00018,2]
[400426441,1767539446734,-490.0,0.00018,2]
[400426454,1767539446851,-57012.05694253,0.00018,2]
[400426456,1767539446863,-322.8916,0.00018,2]
[400426464,1767539446931,-888.0,0.00018,2]
[400426466,1767539446942,-55649.60576669,0.00018,2]
[400426469,1767539446953,-21707.69824548,0.00018,2]
[400426471,1767539446965,-200719.39528173,0.00018,2]
[400426473,1767539446977,-450.01229074,0.00018,2]
[400426479,1767539447021,-4951.46414392,0.00018,2]
[400426483,1767539447051,-3495.83514778,0.00018,2]
[400426485,1767539447062,-21081.93965176,0.00018,2]
[400426487,1767539447074,-2954.93571423,0.00018,2]
[400427768,1767539463760,194.0,0.00032877,120]
[400427769,1767539485167,-3452.365859,0.00015501,2]
[400427779,1767539552616,-243.89913463,0.00015579,2]
[400427780,1767539552687,-172.83002929,0.00015579,2]
[400427781,1767539552758,-191.04032934,0.00015579,2]
[400427782,1767539552825,-186.83687558,0.00015579,2]
[400427783,1767539552902,-500.0,0.00015579,2]
[400427784,1767539552984,-500.0,0.00015579,2]
[400427785,1767539553065,-500.0,0.00015579,2]
[400427786,1767539553142,-500.0,0.00015579,2]
[400427787,1767539553220,-500.0,0.00015579,2]
[400427788,1767539553296,-500.0,0.00015579,2]
[400427789,1767539553379,-500.0,0.00015579,2]
[400427790,1767539553463,-500.0,0.00015579,2]
[400427791,1767539562405,-500.0,0.00015579,2]
[400427792,1767539562484,-500.0,0.00015579,2]
[400427793,1767539562563,-500.0,0.00015579,2]
[400427794,1767539562640,-500.0,0.00015579,2]
[400427795,1767539562716,-500.0,0.00015579,2]
[400427796,1767539562792,-500.0,0.00015579,2]
[400427797,1767539562865,-500.0,0.00015579,2]
[400427798,1767539562937,-500.0,0.00015579,2]
[400427799,1767539563011,-500.0,0.00015579,2]
[400427800,1767539563087,-500.0,0.00015579,2]
[400427801,1767539585737,-561.98782327,0.00015577,2]
[400427802,1767539589288,-1123.97564654,0.00015577,2]
[400427811,1767539595360,-2247.95129308,0.00015577,2]
[400427816,1767539645478,265.0,0.00032876,120]
[400427817,1767539647951,166.80790393,0.0001549,2]
[400427818,1767539665616,214.30996048,0.0001549,2]
[400427819,1767539666890,3295.76389932,0.0001549,2]
[400427820,1767539670184,19235.24823627,0.00015487,2]
[400427821,1767539715591,-358.03486373,0.00015487,2]
[400427822,1767539715614,-2502.447,0.00015487,2]
[400427823,1767539715636,-5504.10741384,0.00015577,2]
[400427824,1767539715658,-1200.0,0.00015578,2]
[400427825,1767539715679,-151.0,0.00015584,2]
[400427826,1767539715700,-151.0,0.00015584,2]
[400427827,1767539715722,-1200.0,0.00015585,2]
[400427828,1767539715742,-300.0,0.00015585,2]
[400427829,1767539715763,-300.0,0.00015586,2]
[400427830,1767539715784,-300.0,0.00015586,2]
[400427831,1767539715804,-501.81860917,0.00015586,2]
[400427832,1767539715825,-285.20258417,0.00015586,2]
[400427833,1767539715847,-2548.5246739,0.00015587,2]
[400427834,1767539715877,-84697.86485519,0.00015587,2]
[400427837,1767539735018,-500.0,0.00015586,2]
[400427838,1767539735107,-500.0,0.00015586,2]
[400427839,1767539735183,-500.0,0.00015586,2]
[400427840,1767539735257,-500.0,0.00015586,2]
[400427841,1767539735343,-987.21228615,0.00015586,2]
[400427842,1767539735430,-987.21228615,0.00015586,2]
[400427843,1767539735516,-987.21228615,0.00015586,2]
[400427844,1767539745265,-500.0,0.00015586,2]
[400427845,1767539745347,-500.0,0.00015586,2]
[400427846,1767539745427,-500.0,0.00015586,2]
[400427847,1767539745510,-578.28204782,0.00015586,2]
[400427848,1767539745588,-500.0,0.00015586,2]
[400427849,1767539745682,-987.21228615,0.00015586,2]
[400427850,1767539745777,-987.21228615,0.00015586,2]
[400427852,1767539866810,1003.0,0.000129,2]
[400427853,1767539866836,2579.41710709,0.000129,2]
[400427854,1767539979669,999.0,0.00015036,3]
[400427855,1767540037111,-500.0,0.000153,2]
[400427856,1767540037187,-277.0,0.000153,2]